Cogmind - Beta 15 @@@ ROGUE MODE // 2025.09.14 @ 17:24:19 Player: beans Result: Destroyed by H-71 Marshal with Heavy Mass Driver Performance ------------- Evolutions (6) 3000 Regions Visited (15) 3000 Robots Destroyed (79) 395 Value Destroyed (3407) 3407 Prototype IDs (15) 300 Alien Tech Used (0) 0 Bonus (2688) 2688 TOTAL SCORE: 12790 Bonus ------- High Alert Combat Kills 23 Follower Combat Kills 2078 Entered Garrisons 200 Used RIF Installer 500 Met Data Miner 300 Friendly Fire -413 Cogmind --------- Core Integrity 0/1150 Matter 127/300 Energy 36/100 System Corruption 3% Temperature Cool (76) Movement Core (50) Location -4/Factory Parts ------- > --- POWER (1) -------- (None) > --- PROPULSION (6) --- (None) > --- UTILITY (8) ------ Visual Processing Unit Core Analyzer > --- WEAPON (4) ------- (None) > --- INVENTORY (5) ---- Matter Compressor (0) Railgun Railgun Peak State ------------ > --- POWER ------------ Neutrino Core > --- PROPULSION ------- Heavy Treads > --- UTILITY ---------- Improved Cooling System Experimental Sensor Array Targeting Computer Damper Plating > --- WEAPON ----------- Railgun Railgun Remote Datajack > --- INVENTORY -------- Heavy Treads Precision Matter Filter Field Laser Missile Launcher [Rating: 76] Favorites ----------- Power Hybrid Deuterium Engine Engine Hybrid Deuterium Engine Power Core Neutrino Core Propulsion Heavy Treads Treads Heavy Treads Flight Unit Nuclear Pulse Array Utility Targeting Computer Device Improved Cooling System Storage High-capacity Matter Pod Processor Targeting Computer Hackware Relay Coupler [Grunt] Protection Damper Plating Weapon Remote Datajack Energy Gun Field Laser Energy Cannon Heavy Phase Cannon Ballistic Gun Railgun Ballistic Cannon Improved Light Cannon Launcher Missile Launcher Special Weapon Remote Datajack Build | -11 -10 -10 -9 -8 -7 -7 -6 -6 -6 -6 -6 -6 -5 -5 -4 ------- Run | Yrd Mat Min Mat Mat Fac Gar Fac Was Fac Low Low Dat Pro Fac Fac Slots Evolved 12 | . . . 2 2 2 . 2 . . . . . . 2 2 Power . | . . . . . . . . . . . . . . . . Propulsion 4 | . . . . . 1 . . . . . . . . 1 2 Utility 6 | . . . 1 2 1 . 2 . . . . . . . . Weapon 2 | . . . 1 . . . . . . . . . . 1 . Parts Attached 64 | 5 . 1 13 7 4 4 . 6 1 . 2 . 3 14 4 Power 9 | 1 . . 2 1 1 1 . . . . . . 1 2 . Engine 4 | 1 . . 2 . . 1 . . . . . . . . . Core 5 | . . . . 1 1 . . . . . . . 1 2 . Reactor . | . . . . . . . . . . . . . . . . Propulsion 10 | 2 . . . 2 . . . 1 . . . . 1 . 4 Treads 6 | 2 . . . 2 . . . 1 . . . . 1 . . Leg . | . . . . . . . . . . . . . . . . Wheel . | . . . . . . . . . . . . . . . . Hover . | . . . . . . . . . . . . . . . . Flight 4 | . . . . . . . . . . . . . . . 4 Utility 20 | . . 1 4 3 1 2 . 2 . . 1 . . 6 . Device 7 | . . 1 1 1 1 1 . . . . 1 . . 1 . Storage 3 | . . . . 2 . . . . . . . . . 1 . Processor 5 | . . . 3 . . . . . . . . . . 2 . Hackware 4 | . . . . . . 1 . 1 . . . . . 2 . Protection 1 | . . . . . . . . 1 . . . . . . . Artifact . | . . . . . . . . . . . . . . . . Weapon 25 | 2 . . 7 1 2 1 . 3 1 . 1 . 1 6 . Energy Gun 4 | . . . 2 . . . . . . . 1 . . 1 . Energy Cannon 3 | . . . 1 . . . . . . . . . . 2 . Ballistic Gun 12 | 2 . . 3 1 1 1 . 1 . . . . 1 2 . Ballistic Cannon 1 | . . . 1 . . . . . . . . . . . . Launcher 3 | . . . . . . . . 2 . . . . . 1 . Special Weapon 2 | . . . . . 1 . . . 1 . . . . . . Impact Weapon . | . . . . . . . . . . . . . . . . Slashing Weapon . | . . . . . . . . . . . . . . . . Piercing Weapon . | . . . . . . . . . . . . . . . . Special Melee Weapon . | . . . . . . . . . . . . . . . . Unidentified Prototypes 4 | . . 1 1 . . . . 1 . . 1 . . . . Parts Lost 42 | . . 4 6 2 1 3 . . . . . . 3 15 8 Power 8 | . . 1 2 . . 1 . . . . . . 1 2 1 Propulsion 8 | . . 2 . . . . . . . . . . 1 1 4 Utility 8 | . . . 1 . . . . . . . . . 1 5 1 Weapon 18 | . . 1 3 2 1 2 . . . . . . . 7 2 Highest Loss Streak 7 | . . 4 4 2 1 1 . . . . . . 1 5 7 To Critical Strikes . | . . . . . . . . . . . . . . . . Average Backups 3 | 1 . . 3 4 4 4 5 4 4 3 3 4 3 2 3 Power . | . . . . . . . . . . . . . . . . Propulsion . | . . . . . . . . . 1 1 . 1 . . . Utility . | . . . 2 2 2 2 3 1 1 . . 1 . . . Weapon 1 | . . . . 1 1 1 1 . 1 1 . 1 2 2 2 Tool/Special . | . . . . . . . . . . . . . . . . Unused Backups 4 | . . . . . 1 . . 1 . . . . 2 . . Power . | . . . . . . . . . . . . . . . . Propulsion . | . . . . . . . . . . . . . . . . Utility 1 | . . . . . . . . 1 . . . . . . . Weapon 2 | . . . . . 1 . . . . . . . 1 . . Tool/Special 1 | . . . . . . . . . . . . . 1 . . Average Slot Usage (%) 57 | . 71 61 33 80 83 88 73 52 58 60 60 66 53 43 37 Engine 2 | . 14 10 2 . . . 6 5 6 6 6 6 . . 2 Core 2 | . . . . 3 7 5 . . . . . . 4 2 . Treads 7 | . 28 23 . 11 15 15 13 6 6 6 6 6 6 3 . Device 11 | . . . 1 7 7 14 13 5 6 11 13 13 18 10 . Storage 1 | . . . . 3 7 1 . . . . . . . 1 1 Processor 10 | . . . 3 27 23 23 20 14 6 6 6 6 6 11 10 Hackware 3 | . . . . . . 5 6 8 13 7 6 6 . . 4 Protection 1 | . . . . . . . . 2 6 6 5 6 1 . . Ballistic Gun 7 | . 28 25 18 17 15 13 6 5 6 6 5 6 3 2 . Special Weapon 3 | . . . . . . 7 6 . 4 6 6 6 6 2 . Peak Build Rating 76 | 5 5 14 12 26 28 39 39 61 65 69 73 73 76 63 60 Average Rating 44 | 2 5 4 7 19 24 33 39 42 64 68 69 73 53 40 39 On Entrance 34 | . 5 5 2 12 23 28 39 39 61 65 69 73 73 47 12 Naked Turns 7 | . . . 7 . . . . . . . . . . . . Heaviest Build 77 | 5 5 5 11 21 23 23 17 60 63 64 67 67 77 37 13 Greatest Support 70 | 40 40 40 3 40 40 40 40 70 70 70 70 70 70 70 39 Greatest Overweight (x) 5 | . . . 3 3 . . . 2 . . . . 1 5 1 Average Overweight (x) . | . . . 1 1 . . . . . . . . . . . Largest Inventory Capacity 5 | 5 5 5 5 5 5 5 5 5 5 5 5 5 5 5 5 Average Capacity 5 | 5 5 5 5 5 5 5 5 5 5 5 5 5 5 5 5 Most Carried 5 | 5 . 2 5 5 5 5 5 5 5 5 5 5 5 5 5 Average Carried 4 | . . . 3 4 4 4 5 4 5 4 4 5 4 3 4 Final Capacity 5 | 5 5 5 5 5 5 5 5 5 5 5 5 5 5 5 5 Final Carried 5 | . . 2 5 4 5 5 5 5 5 4 5 5 2 5 3 Class Distribution -------------------- 62% | Mutant 24% | Gunner 7% | Scavenger-Tank 4% | Tank Dominant Class ---------------- Mutant | -10/Materials Mutant | -10/Mines Gunner | -9/Materials Gunner | -8/Materials Gunner | -7/Factory Gunner | -7/Garrison Mutant | -6/Factory Mutant | -6/Waste Mutant | -6/Factory Mutant | -6/Lower Caves Mutant | -6/Lower Caves Scavenger-Tank | -6/Data Miner Mutant | -5/Proximity Caves Mutant | -5/Factory Mutant | -4/Factory Resources | -11 -10 -10 -9 -8 -7 -7 -6 -6 -6 -6 -6 -6 -5 -5 -4 ----------- Run | Yrd Mat Min Mat Mat Fac Gar Fac Was Fac Low Low Dat Pro Fac Fac Matter Collected 2920 | 169 . 265 295 430 211 311 . 249 . 100 233 . 322 150 185 Remotely . | . . . . . . . . . . . . . . . . Salvage Created 3200 | . . 181 621 475 237 172 . 227 40 . 87 . 566 460 134 Parts 129 | . . 4 34 26 11 11 . . 1 . 3 . 14 23 2 Haulers Intercepted 3 | . . . 1 1 . . . . . . 1 . . . . Recyclers Shooed 2 | . . . . . . . . . . . . . . . 2 Parts Field Recycled . | . . . . . . . . . . . . . . . . Retrieved Matter . | . . . . . . . . . . . . . . . . Parts Self-Destructed 58 | . . . . . . . . . . 3 25 . 30 . . Prevented . | . . . . . . . . . . . . . . . . Kills | -11 -10 -10 -9 -8 -7 -7 -6 -6 -6 -6 -6 -6 -5 -5 -4 ------- Run | Yrd Mat Min Mat Mat Fac Gar Fac Was Fac Low Low Dat Pro Fac Fac Combat Hostiles Destroyed 62 | . . 4 12 6 6 4 . 1 1 . 1 . 14 13 . Guns 35 | . . 4 9 2 5 4 . . . . . . 5 6 . Cannons 12 | . . . 3 4 1 . . . . . . . . 4 . AOE 15 | . . . . . . . . 1 1 . 1 . 9 3 . Classes Destroyed 12 | . . 1 6 1 1 . . 1 1 . . . 1 . . Worker 6 | . . . 1 4 . . . . . . . . . 1 . Builder 1 | . . . 1 . . . . . . . . . . . . Hauler 3 | . . . 1 1 . . . . . . 1 . . . . Recycler 4 | . . . 2 1 . . . . . . . . . . 1 Watcher 2 | . . . 1 . . . . . . . . . . 1 . Swarmer 15 | . . . 6 . . . . . . . 1 . . 8 . Grunt 36 | . . 4 6 4 4 4 . . . . . . 12 2 . Brawler 1 | . . . . . . . . . . . . . 1 . . Sentry 3 | . . . . 2 . . . . . . . . 1 . . Hunter 1 | . . . . . . . . . 1 . . . . . . Programmer 5 | . . . . . 2 . . . . . . . . 3 . Compactor 1 | . . . . . . . . 1 . . . . . . . Wasp 1 | . . . . . . . . 1 . . . . . . . Best Kill Streak 7 | . . 1 7 6 3 2 . 1 1 . 1 . 5 4 1 Combat Bots Only 5 | . . 1 4 2 3 2 . 1 1 . 1 . 5 4 . Max Kills in Single Turn 2 | . . 1 2 1 1 1 . 1 1 . 1 . 2 1 1 Gunslinging 1 | . . . 1 . . . . . . . . . . . . Exploded 2 | . . . . . . . . 1 1 . 1 . 2 1 . Melee . | . . . . . . . . . . . . . . . . Uniques/NPCs Destroyed . | . . . . . . . . . . . . . . . . Combat | -11 -10 -10 -9 -8 -7 -7 -6 -6 -6 -6 -6 -6 -5 -5 -4 -------- Run | Yrd Mat Min Mat Mat Fac Gar Fac Was Fac Low Low Dat Pro Fac Fac Hostile Shots Fired 720 | . . 72 128 35 22 48 . . 12 . 14 . 90 180 119 Missed 219 | . . 20 38 9 5 10 . . 6 . 7 . 15 51 58 Hits 501 | . . 52 90 26 17 38 . . 6 . 7 . 75 129 61 Melee 6 | . . . . . . . . . . . . . 4 . 2 Projectile 495 | . . 52 90 26 17 38 . . 6 . 7 . 71 129 59 AOE 3 | . . . . . . . . . . . . . . 1 2 Critical Strikes 17 | . . . 1 2 1 2 . . . . 1 . 4 4 2 Part Disruptions 1 | . . . . . . . . . . . . . . 1 . Damage Taken 9365 | . . 706 1027 392 266 615 . 175 39 . 208 . 1683 2388 1866 Core 2922 | . . 232 364 30 14 31 . 32 . . 20 . 187 861 1151 Absorbed by Shields . | . . . . . . . . . . . . . . . . Reduced by Siege Mode 35 | . . . . . . . . . . . . . 35 . . Ignored by Resistances 21 | . . . . . . . . . . . . . 21 . . Regen/Repaired (Parts) 266 | . . . . . . . . 55 . . 44 . 22 . 145 Core Remaining (%) 55 | 100 . 7 9 94 . 93 . . . . . . 71 13 . Volleys Fired 343 | 1 . 27 51 26 14 27 . 14 12 4 35 . 65 44 23 Largest 3 | 2 . 2 3 3 3 2 . 2 1 1 1 . 2 2 2 Hottest 123 | 40 . 40 100 79 79 51 . 64 35 35 36 . 98 123 70 Shots Fired 575 | 2 . 51 108 73 36 47 . 19 12 4 35 . 84 62 42 Gun 444 | 2 . 51 96 47 28 42 . 12 1 3 28 . 50 42 42 Cannon 58 | . . . 12 26 8 . . . . . . . . 12 . Launcher 43 | . . . . . . . . 7 . . 1 . 27 8 . Special 30 | . . . . . . 5 . . 11 1 6 . 7 . . Kinetic 390 | 2 . 51 62 73 36 42 . 12 1 3 28 . 39 35 6 Thermal 106 | . . . 40 . . . . . . . . . 11 19 36 Explosive 43 | . . . . . . . . 7 . . 1 . 27 8 . Electromagnetic 6 | . . . 6 . . . . . . . . . . . . Robot Hit Streak 27 | 1 . 11 15 26 27 16 . 13 15 . 13 . 27 9 4 Robot Miss Streak 9 | 1 . 4 9 2 1 3 . 2 1 . 3 . 2 4 5 Penetration Max 1 | . . . . . . . . . . . . . 1 1 . Secondary Targets 8 | . . 1 3 . 1 1 . . . . . . 1 1 . Max Gunslinging Chain 1 | . . 1 1 . 1 1 . . . . . . 1 1 . Shots Hit Robots 369 | 1 . 28 54 59 27 35 . 15 9 . 28 . 62 29 22 Core Hits 191 | . . 13 25 22 13 18 . 8 4 . 6 . 44 24 14 Critical Kills 3 | . . . . . . . . . . . . . 1 2 . Critical Parts Destroyed 3 | . . . 1 . . . . . . . . . . 2 . Critical Strikes 7 | . . . 1 . . . . . . . . . 2 4 . Burn 1 | . . . . . . . . . . . . . 1 . . Destroy 6 | . . . 1 . . . . . . . . . 1 4 . Melee Attacks . | . . . . . . . . . . . . . . . . Impact . | . . . . . . . . . . . . . . . . Slashing . | . . . . . . . . . . . . . . . . Piercing . | . . . . . . . . . . . . . . . . Sneak Attacks . | . . . . . . . . . . . . . . . . Combat Hostiles . | . . . . . . . . . . . . . . . . Follow-up Attacks . | . . . . . . . . . . . . . . . . Damage Inflicted 9380 | 14 . 247 1044 1011 456 503 . 1097 116 . 787 . 2703 1152 250 Guns 5039 | 14 . 245 645 656 372 503 . 256 . . 602 . 1065 456 225 Cannons 787 | . . . 144 347 84 . . . . . . . . 212 . Explosions 3543 | . . . 255 . . . . 841 116 . 185 . 1638 483 25 Melee . | . . . . . . . . . . . . . . . . Ramming 11 | . . 2 . 8 . . . . . . . . . 1 . Kinetic 4801 | 14 . 245 314 1003 456 503 . 256 . . 602 . 966 395 47 Thermal 1136 | . . . 586 . . . . . . . . . 99 273 178 Explosive 3147 | . . . . . . . . 841 . . 185 . 1638 483 . Electromagnetic 285 | . . . 144 . . . . . 116 . . . . . 25 Impact . | . . . . . . . . . . . . . . . . Slashing . | . . . . . . . . . . . . . . . . Piercing . | . . . . . . . . . . . . . . . . Highest Corruption 13 | . . . . . 2 3 . . . . . . . 13 3 Average Corruption 2 | . . . . . 1 2 . . . . . . . 2 2 Corruption Purged . | . . . . . . . . . . . . . . . . Corruption Blocked . | . . . . . . . . . . . . . . . . Effects 25 | . . . . . . 13 . . . . . . . 11 1 Message Errors 1 | . . . . . . . . . . . . . . 1 . Matter Fused 10 | . . . . . . 5 . . . . . . . 4 1 Heat Flow Errors 2 | . . . . . . 1 . . . . . . . 1 . Energy Discharges 5 | . . . . . . 2 . . . . . . . 3 . Data Loss (minor) 2 | . . . . . . 1 . . . . . . . 1 . Data Loss (major) 2 | . . . . . . 1 . . . . . . . 1 . Misfires 1 | . . . . . . 1 . . . . . . . . . Alerts 2 | . . . . . . 2 . . . . . . . . . Overload Shots . | . . . . . . . . . . . . . . . . Overflow Damage 112 | . . . 41 11 . . . . 8 . 42 . . 10 . Projectiles 21 | . . . . 11 . . . . . . . . . 10 . Explosions 91 | . . . 41 . . . . . 8 . 42 . . . . Melee . | . . . . . . . . . . . . . . . . Knockbacks 3 | . . . . 2 1 . . . . . . . . . . Impact . | . . . . . . . . . . . . . . . . Kinetic 3 | . . . . 2 1 . . . . . . . . . . Secondary . | . . . . . . . . . . . . . . . . Self-Inflicted Damage 308 | . . 1 123 . . . . 39 . . . . 145 . . Shots 8 | . . . 2 . . . . 2 . . . . 4 . . Rammed 4 | . . 1 . 2 . . . . . . . . . 1 . Targets Rammed 5 | . . 1 . 3 . . . . . . . . . 1 . Kicked . | . . . . . . . . . . . . . . . . Crushed 1 | . . . . 1 . . . . . . . . . . . Highest Temperature 316 | . . 21 36 7 . 214 . . . . . . 279 94 316 Average Temperature 65 | . . 9 14 7 . 107 . . . . . . 143 36 171 Received Heat Transfer 2365 | . . 405 306 225 54 339 . . . . 73 . 451 39 473 Effects 2 | . . . . . . . . . . . . . 2 . . Energy Bleed 1 | . . . . . . . . . . . . . 1 . . Interference 1 | . . . . . . . . . . . . . 1 . . Siege Activations 5 | . . . . . . . . . . . . . 5 . . Total Turns 260 | . . . . . . . . . . . . . 260 . . Longest Duration 118 | . . . . . . . . . . . . . 118 . . Martial Activations . | . . . . . . . . . . . . . . . . Shielding Activations . | . . . . . . . . . . . . . . . . Robots Disrupted . | . . . . . . . . . . . . . . . . Combat Hostiles . | . . . . . . . . . . . . . . . . Robots Corrupted . | . . . . . . . . . . . . . . . . Combat Hostiles . | . . . . . . . . . . . . . . . . Parts Fried . | . . . . . . . . . . . . . . . . Impact Corruptions . | . . . . . . . . . . . . . . . . Robots Melted . | . . . . . . . . . . . . . . . . Combat Hostiles . | . . . . . . . . . . . . . . . . Parts Melted 4 | . . 1 1 . . . . . . . . . 1 . 1 Heat Transferred 2332 | . . . 1000 . . . . . . . . . 296 296 740 Parts Sabotaged . | . . . . . . . . . . . . . . . . Parts Stolen . | . . . . . . . . . . . . . . . . Parts Stripped . | . . . . . . . . . . . . . . . . Power Chain Reactions 1 | . . . 1 . . . . . . . . . . . . Alert | -11 -10 -10 -9 -8 -7 -7 -6 -6 -6 -6 -6 -6 -5 -5 -4 ------- Run | Yrd Mat Min Mat Mat Fac Gar Fac Was Fac Low Low Dat Pro Fac Fac Maximum Alert Level 3 | . . . 1 . . 3 2 . . . . . . . . Low Security (%) 89 | 100 100 100 97 100 100 32 . 100 100 . . . . 100 100 Level 1 . | . . . 2 . . 4 . . . . . . . . . Level 2 3 | . . . . . . 18 100 . . . . . . . . Level 3 6 | . . . . . . 44 . . . . . . . . . Level 4 . | . . . . . . . . . . . . . . . . Level 5 . | . . . . . . . . . . . . . . . . High Security . | . . . . . . . . . . . . . . . . Max Security . | . . . . . . . . . . . . . . . . Peak Influence 885 | . . 40 202 70 164 885 460 157 157 . . . . 105 50 Initial 460 | . . . 7 70 25 98 460 157 . . . . . 63 . Average 116 | . . 7 107 31 34 559 456 49 13 . . . . 33 10 Influence Increases 4118 | . . 100 478 185 234 850 . 76 173 60 657 . 751 381 173 Destroy 0b10 Robot/C 2300 | . . 80 300 120 160 520 . . 40 20 300 . 500 260 . Destroy 0b10 Robot/NC 105 | . . . 35 30 5 . . . 15 . 5 . . 10 5 Destroy Leader 302 | . . 20 44 32 42 30 . . 12 10 30 . 50 32 . Allied During Kill 767 | . . . 10 . 23 144 . . 67 30 322 . 171 . . Successful Hack 27 | . . . 4 . 4 . . . . . . . . 7 12 Disable Machine 90 | . . . 30 . . . . . 15 . . . . . 45 Anti-Garrison Action 150 | . . . . . . 150 . . . . . . . . . Destroy Structure 197 | . . . 25 3 . 6 . 61 24 . . . . 72 6 Partial Spotted 45 | . . . . . . . . 15 . . . . . . 30 Lose Combat Pursuer 135 | . . . 30 . . . . . . . . . 30 . 75 Influence Decreases 4118 | . . 80 331 296 150 112 428 526 26 207 312 345 649 483 173 Entered New Map 1334 | . . . 13 97 31 42 418 293 . 56 . 345 . 39 . Time Decay 2093 | . . 60 238 179 109 . 10 193 26 131 252 . 446 331 118 Lost Part 338 | . . 20 60 20 10 30 . . . . . . 30 113 55 Lost Ally 353 | . . . 20 . . 40 . 40 . 20 60 . 173 . . Squads Dispatched 18 | . . . 1 2 3 . . . 2 . . . 1 4 5 Investigation 4 | . . . 1 1 . . . . . . . . . 1 1 Extermination 5 | . . . . . 1 . . . . . . . . 3 1 Reinforcement 6 | . . . . 1 . . . . 2 . . . . . 3 Assault 1 | . . . . . . . . . . . . . 1 . . Garrison 2 | . . . . . 2 . . . . . . . . . . Intercept . | . . . . . . . . . . . . . . . . Searches Triggered . | . . . . . . . . . . . . . . . . Data Miner Redirects 4 | . . . . . . . . . . . . . . 1 3 Construction Impeded 1 | . . . . . . . . . 1 . . . . . . Haulers Reinforced . | . . . . . . . . . . . . . . . . Active Scanning Responses . | . . . . . . . . . . . . . . . . Cargo Convoy Interrupts . | . . . . . . . . . . . . . . . . Stealth | -11 -10 -10 -9 -8 -7 -7 -6 -6 -6 -6 -6 -6 -5 -5 -4 --------- Run | Yrd Mat Min Mat Mat Fac Gar Fac Was Fac Low Low Dat Pro Fac Fac Distress Signals 5 | . . . . . . . . . 1 . . . . . 4 Communications Jammed . | . . . . . . . . . . . . . . . . Distress Signals . | . . . . . . . . . . . . . . . . Times Spotted 179 | . . 5 18 9 8 26 . 5 5 . 16 . 28 17 42 Peak Tracking Total 21 | . . 3 5 5 3 7 . 3 3 . 5 . 7 4 21 Tactical Retreats 7 | . . . 2 . . . . . . . . . 2 . 3 Traps | -11 -10 -10 -9 -8 -7 -7 -6 -6 -6 -6 -6 -6 -5 -5 -4 ------- Run | Yrd Mat Min Mat Mat Fac Gar Fac Was Fac Low Low Dat Pro Fac Fac Traps Triggered 3 | . . . . . . 1 1 . . . . . . . 1 Indirectly . | . . . . . . . . . . . . . . . . Trap Hack Attempts . | . . . . . . . . . . . . . . . . Triggered . | . . . . . . . . . . . . . . . . Disarmed . | . . . . . . . . . . . . . . . . Reprogrammed . | . . . . . . . . . . . . . . . . Reused 1 | . . . . . . . . . . . . . 1 . . Traps Extracted . | . . . . . . . . . . . . . . . . Installed 2 | . . . . . . . . . . . . . 2 . . Triggered 1 | . . . . . . . . . . . . . 1 . . Machines | -11 -10 -10 -9 -8 -7 -7 -6 -6 -6 -6 -6 -6 -5 -5 -4 ---------- Run | Yrd Mat Min Mat Mat Fac Gar Fac Was Fac Low Low Dat Pro Fac Fac Machines Disabled 9 | . . . 2 . . 3 . . 1 . . . . . 3 Max in Single Turn 3 | . . . 2 . . 1 . . 1 . . . . . 3 Garrison Access 2 | . . . . . . . . . . . . . . 2 . Garrison Relay 3 | . . . . . . 3 . . . . . . . . . Machines Repaired . | . . . . . . . . . . . . . . . . Machines Dismantled . | . . . . . . . . . . . . . . . . Machines Sabotaged . | . . . . . . . . . . . . . . . . Overloaded Fab Kills . | . . . . . . . . . . . . . . . . Hacking | -11 -10 -10 -9 -8 -7 -7 -6 -6 -6 -6 -6 -6 -5 -5 -4 --------- Run | Yrd Mat Min Mat Mat Fac Gar Fac Was Fac Low Low Dat Pro Fac Fac Machines Accessed 21 | . . . 1 1 3 2 . . . . 1 4 . 6 3 Terminals 4 | . . . 1 . 1 2 . . . . . . . . . Fabricators 3 | . . . . . 1 . . . . . . . . 2 . Repair Stations 5 | . . . . 1 . . . . . . . . . 2 2 Recycling Units . | . . . . . . . . . . . . . . . . Scanalyzers 1 | . . . . . . . . . . . . . . . 1 Garrison Access 3 | . . . . . 1 . . . . . . . . 2 . Total Hacks 64 | . . . 2 3 5 2 . . . . 1 30 . 9 12 Successful 46 | . . . 1 1 3 1 . . . . 1 30 . 5 4 Failed 18 | . . . 1 2 2 1 . . . . . . . 4 8 Catastrophic 4 | . . . 1 . . . . . . . . . . 2 1 Database Lockouts . | . . . . . . . . . . . . . . . . Manual 3 | . . . . . 1 . . . . . . 1 . 1 . Terminals 5 | . . . 2 . 1 2 . . . . . . . . . Fabricators 7 | . . . . . 3 . . . . . . . . 4 . Repair Stations 12 | . . . . 3 . . . . . . . . . 2 7 Recycling Units . | . . . . . . . . . . . . . . . . Scanalyzers 5 | . . . . . . . . . . . . . . . 5 Garrison Access 4 | . . . . . 1 . . . . . . . . 3 . Terminal Hacks 33 | . . . 1 . . 1 . . . . 1 30 . . . Record 11 | . . . . . . . . . . . . 11 . . . Part Schematic 10 | . . . . . . . . . . . . 10 . . . Robot Schematic 6 | . . . . . . . . . . . . 6 . . . Prototype ID Bank 3 | . . . . . . . . . . . . 3 . . . Open Door 1 | . . . . . . . . . . . 1 . . . . Emergency Access Points 2 | . . . 1 . . 1 . . . . . . . . . Fabricator Hacks 4 | . . . . . 2 . . . . . . . . 2 . Network Status 1 | . . . . . 1 . . . . . . . . . . Load Schematic 1 | . . . . . . . . . . . . . . 1 . Build 2 | . . . . . 1 . . . . . . . . 1 . Repair Station Hacks 4 | . . . . 1 . . . . . . . . . . 3 Scan Component 2 | . . . . 1 . . . . . . . . . . 1 Repair 1 | . . . . . . . . . . . . . . . 1 Refit 1 | . . . . . . . . . . . . . . . 1 Recycling Unit Hacks . | . . . . . . . . . . . . . . . . Scanalyzer 1 | . . . . . . . . . . . . . . . 1 Insert Component 1 | . . . . . . . . . . . . . . . 1 Garrison Access Hacks 4 | . . . . . 1 . . . . . . . . 3 . Unlock Access 1 | . . . . . 1 . . . . . . . . . . Seal Access 2 | . . . . . . . . . . . . . . 2 . Coupler Status 1 | . . . . . . . . . . . . . . 1 . Unauthorized Hacks . | . . . . . . . . . . . . . . . . Terminals . | . . . . . . . . . . . . . . . . Fabricators . | . . . . . . . . . . . . . . . . Repair Stations . | . . . . . . . . . . . . . . . . Recycling Units . | . . . . . . . . . . . . . . . . Scanalyzers . | . . . . . . . . . . . . . . . . Garrison Access . | . . . . . . . . . . . . . . . . Data Cores Recovered . | . . . . . . . . . . . . . . . . Used . | . . . . . . . . . . . . . . . . Hacking Detections 12 | . . . 1 1 1 1 . . . . . . . 5 3 Full Trace Events 4 | . . . 1 1 . . . . . . . . . 1 1 Feedback Events . | . . . . . . . . . . . . . . . . Feedback Blocked . | . . . . . . . . . . . . . . . . Robot Schematics Acquired 6 | . . . . . . . . . . . . 6 . . . Robots Built 2 | . . . . . 2 . . . . . . . . . . Authchips . | . . . . . . . . . . . . . . . . Time 286 | . . . . . 134 . . . . . . . . 152 . Total Robot Build Rating 8 | . . . . . 8 . . . . . . . . . . Part Schematics Acquired 10 | . . . . . . . . . . . . 10 . . . Parts Built . | . . . . . . . . . . . . . . . . Authchips . | . . . . . . . . . . . . . . . . Time . | . . . . . . . . . . . . . . . . Total Part Build Rating . | . . . . . . . . . . . . . . . . Parts Repaired 1 | . . . . . . . . . . . . . . . 1 Time 31 | . . . . . . . . . . . . . . . 31 Parts Recycled . | . . . . . . . . . . . . . . . . Recycled Matter . | . . . . . . . . . . . . . . . . Retrieved Matter . | . . . . . . . . . . . . . . . . Retrieved Components . | . . . . . . . . . . . . . . . . Parts Scanalyzed 1 | . . . . . . . . . . . . . . . 1 Part Schematics Acquired . | . . . . . . . . . . . . . . . . Parts Damaged 1 | . . . . . . . . . . . . . . . 1 Bothacking | -11 -10 -10 -9 -8 -7 -7 -6 -6 -6 -6 -6 -6 -5 -5 -4 ------------ Run | Yrd Mat Min Mat Mat Fac Gar Fac Was Fac Low Low Dat Pro Fac Fac Used RIF Installer 1 | . . . . . . 1 . . . . . . . . . Robots Hacked 10 | . . . . . . 1 . . 4 . 3 . 2 . . Non-combat 4 | . . . . . . . . . 3 . . . 1 . . Combat 6 | . . . . . . 1 . . 1 . 3 . 1 . . Robot Hacks Applied 12 | . . . . . . 2 . . 5 . 3 . 2 . . parse_system 3 | . . . . . . 1 . . 2 . . . . . . no_distress 2 | . . . . . . . . . 1 . . . 1 . . ignore_parts 1 | . . . . . . . . . 1 . . . . . . overload_power 3 | . . . . . . . . . . . 2 . 1 . . reboot_system 1 | . . . . . . 1 . . . . . . . . . formatsys_high 2 | . . . . . . . . . 1 . 1 . . . . Relay Couplers Released 13 | . . . . . 3 10 . . . . . . . . . Machine Destruction 10 | . . . . . . 10 . . . . . . . . . Programmers 3 | . . . . . 3 . . . . . . . . . . Attached 2 | . . . . . . 1 . 1 . . . . . . . Fabnet Peak Effective % . | . . . . . . . . . . . . . . . . Robots Rewired 2 | . . . . . . . . . . . . . 2 . . Allies Hacked . | . . . . . . . . . . . . . . . . Hacks Repelled . | . . . . . . . . . . . . . . . . Allies | -11 -10 -10 -9 -8 -7 -7 -6 -6 -6 -6 -6 -6 -5 -5 -4 -------- Run | Yrd Mat Min Mat Mat Fac Gar Fac Was Fac Low Low Dat Pro Fac Fac Total Allies 28 | . . 1 . . 2 2 . 19 1 . 1 . 2 . . Largest Group 19 | . . 1 1 . 2 3 1 19 13 13 13 9 9 . . Highest-Rated Group 684 | . . 31 31 . 64 174 80 684 516 515 516 344 344 . . Highest-Rated Ally 80 | . . 31 31 . 32 80 80 80 50 50 50 46 49 . . Total Orders 3 | . . . . . . . . . . . . 2 1 . . AID 3 | . . . . . . . . . . . . 2 1 . . Ally Attacks 313 | . . . 14 . 17 58 . 84 18 6 60 . 56 . . Total Damage 10964 | . . . 186 . 626 2132 . 3646 926 62 1900 . 1486 . . Kills 70 | . . . 4 . 3 22 . 10 4 1 15 . 11 . . Allies Corrupted 1 | . . . . . . . . . . . . . 1 . . Allies Melted . | . . . . . . . . . . . . . . . . Intel | -11 -10 -10 -9 -8 -7 -7 -6 -6 -6 -6 -6 -6 -5 -5 -4 ------- Run | Yrd Mat Min Mat Mat Fac Gar Fac Was Fac Low Low Dat Pro Fac Fac Active Infowar (turns) 5896 | . . 1 . . . 17 . . . 527 832 209 2326 1529 455 Optics 1188 | . . . . . . . . . . . . . . 733 455 Sensors 4708 | . . 1 . . . 17 . . . 527 832 209 2326 796 . Robot Analysis Total . | . . . . . . . . . . . . . . . . Derelict Logs Recovered 3 | . . . . . . . . . . 1 . . 2 . . Drone Launches . | . . . . . . . . . . . . . . . . Drone Recoveries . | . . . . . . . . . . . . . . . . Exploration | -11 -10 -10 -9 -8 -7 -7 -6 -6 -6 -6 -6 -6 -5 -5 -4 ------------- Run | Yrd Mat Min Mat Mat Fac Gar Fac Was Fac Low Low Dat Pro Fac Fac Turns Passed 9776 | 53 12 263 508 401 604 830 31 710 243 618 832 209 2399 1608 455 Spaces Moved 5053 | 47 8 119 238 165 233 412 19 393 119 345 418 85 1046 653 753 Core 757 | 31 . 22 238 63 . . . 44 . . . . . 253 106 Treads 3649 | 16 8 97 . 102 233 412 19 349 119 345 418 85 1046 400 . Legs . | . . . . . . . . . . . . . . . . Wheels . | . . . . . . . . . . . . . . . . Hover . | . . . . . . . . . . . . . . . . Flight 647 | . . . . . . . . . . . . . . . 647 Fastest Speed 34 | 50 160 50 50 170 170 170 170 50 160 160 160 160 160 50 34 Average Speed 141 | 87 160 139 133 181 170 170 170 152 160 160 160 160 160 163 37 Slowest Speed 300 | 160 160 160 200 200 170 170 170 170 160 160 160 160 240 300 100 Overloaded Moves . | . . . . . . . . . . . . . . . . Propulsion Burnouts . | . . . . . . . . . . . . . . . . Robots Hopped 2 | . . . . . . . . . . . . . . . 2 Potential Cave-ins 7 | . . . . . . . . . . . . . 7 . . Cave-ins Triggered . | . . . . . . . . . . . . . . . . Exploration Rate (%) 32 | 3 2 25 26 23 6 46 1 96 5 50 59 70 78 19 16 Regions Visited 15 Branch Regions 5 Pre-discovered Areas 2 | . . . 1 . . . . . . . . 1 . . . Known Exits Taken 1 | . . . . . 1 . . . . . . . . . . Unknown Exits Taken 11 | 1 1 1 1 1 . . . . 1 1 1 1 1 1 . Scrap Searched 8 | . . 1 . . . . . . . 2 3 . 2 . . Spaces Dug 44 | . . . . . . . . . . . . . 41 . 3 Terrain Destroyed 349 | . . . 27 2 . . . 25 . 2 16 . 222 52 3 Melee . | . . . . . . . . . . . . . . . . Projectile 40 | . . . 1 2 . . . 4 . 2 10 . 9 9 3 AOE 309 | . . . 26 . . . . 21 . . 6 . 213 43 . Terrain Rammed . | . . . . . . . . . . . . . . . . Walls Destroyed . | . . . . . . . . . . . . . . . . Machines Disabled . | . . . . . . . . . . . . . . . . Actions | -11 -10 -10 -9 -8 -7 -7 -6 -6 -6 -6 -6 -6 -5 -5 -4 --------- Run | Yrd Mat Min Mat Mat Fac Gar Fac Was Fac Low Low Dat Pro Fac Fac Total 7170 | 57 7 174 334 206 411 499 19 487 165 408 551 158 1682 1131 881 Wait 1583 | . . 24 21 2 148 47 . 54 34 58 84 74 549 402 86 Move 5031 | 46 7 118 237 164 232 410 19 392 118 344 416 84 1045 650 749 Hop 2 | . . . . . . . . . . . . . . . 2 Pick Up 55 | 5 . 2 11 2 6 4 . 2 . . 6 . 4 11 2 Fast Attach 25 | . . . 3 5 3 2 . 4 1 . 1 . . 3 3 Attach 53 | 5 . 1 9 2 2 2 . 4 . 1 2 . 4 13 8 Detach 23 | . . 1 1 . . 1 . 5 . 1 . . 3 4 7 Swap 15 | . . . 1 1 2 3 . 1 . . 2 . 4 1 . Drop 33 | . . . . 1 4 3 . 11 . . 5 . 6 2 1 Fire 343 | 1 . 27 51 26 14 27 . 14 12 4 35 . 65 44 23 Melee . | . . . . . . . . . . . . . . . . Ram 2 | . . 1 . . . . . . . . . . . 1 . Kick . | . . . . . . . . . . . . . . . . Crush 3 | . . . . 3 . . . . . . . . . . . Escape Stasis . | . . . . . . . . . . . . . . . . Rewire . | . . . . . . . . . . . . . . . . Trap 2 | . . . . . . . . . . . . . 2 . . Miscellaneous . | . . . . . . . . . . . . . . . . Route ------- -11/Scrapyard -10/Materials -10/Mines -9/Materials -8/Materials -7/Factory -7/Garrison -6/Factory -6/Waste -6/Factory -6/Lower Caves -6/Lower Caves (discovered 2 exits: *Fac / *Dat) -6/Data Miner -5/Proximity Caves -5/Factory (discovered 3 exits: *Fac x3) -4/Factory History --------- Turn | Location | Event 12 | -11/Scrapyard | Discovered new exit (range 15) 54 | -11/Scrapyard | Entered Materials 54 | -10/Materials | Discovered new exit (range 7) 66 | -10/Materials | Entered Mines 71 | -10/Mines | Met a Derelict bent on vengeance 127 | -10/Mines | Found a damaged Exp. Sensor Array with a note attached 164 | -10/Mines | Found Prototype Device 165 | -10/Mines | Identified Exp. Sensor Array 273 | -10/Mines | Core integrity fell below 50% 278 | -10/Mines | Discovered new exit (range 5) 285 | -10/Mines | Assembled infested the area 285 | -10/Mines | Core integrity fell below 20% 301 | -10/Mines | Build established: Mutant 319 | -10/Mines | Lost 4 parts (1p2n1w) 321 | -10/Mines | Escorted by a lone wolf Derelict 329 | -10/Mines | Entered Materials 329 | -9/Materials | Accompanied by 1 ally 329 | -9/Materials | Evolved 2 slots: Utility x1, Weapon x1 341 | -9/Materials | Learned location of Storage (-9) 450 | -9/Materials | Core integrity fell below 50% 499 | -9/Materials | Lost 4 parts (1p1u2w) 638 | -9/Materials | Core integrity fell below 20% 809 | -9/Materials | Discovered new exit (range 13) 828 | -9/Materials | Build established: Gunner 837 | -9/Materials | Entered another Materials area 837 | -8/Materials | Evolved 2 slots: Utility x2 1134 | -8/Materials | Discovered new exit (range 10) 1238 | -8/Materials | Entered Factory 1238 | -7/Factory | Evolved 2 slots: Propulsion x1, Utility x1 1533 | -7/Factory | Fabricated Y-54 Guardian (x2) 1608 | -7/Factory | Identified exit to Garrison 1636 | -7/Factory | Garrison activated, responded to threat 1762 | -7/Factory | Garrison activated, responded to threat 1771 | -7/Factory | P-60 Hacker assimilated allied Guardian 4b 1842 | -7/Factory | Entered Garrison 1842 | -7/Garrison | Accompanied by 1 ally 1858 | -7/Garrison | Triggered checkpoint 1877 | -7/Garrison | Found embedded Infiltrators 1945 | -7/Garrison | Garrison Relay disabled 1982 | -7/Garrison | Installed Relay Interface Framework 2292 | -7/Garrison | Triggered checkpoint 2315 | -7/Garrison | Garrison Relay disabled 2404 | -7/Garrison | Triggered checkpoint 2422 | -7/Garrison | Triggered checkpoint 2484 | -7/Garrison | Triggered checkpoint 2556 | -7/Garrison | Garrison Relay disabled 2628 | -7/Garrison | Discovered new exit (range 14) 2672 | -7/Garrison | Entered Factory 2672 | -6/Factory | Accompanied by 1 ally 2672 | -6/Factory | Evolved 2 slots: Utility x2 2703 | -6/Factory | Sucked down chute 2703 | -6/Factory | Entered Waste 2713 | -6/Waste | 1 allies followed down the chute 2742 | -6/Waste | Spotted C-40 Crusher 2773 | -6/Waste | Spotted C-40 Crusher 2787 | -6/Waste | Spotted C-40 Crusher 2797 | -6/Waste | Spotted C-40 Crusher 2802 | -6/Waste | Warlord forces began an assault 2806 | -6/Waste | Allies destroyed C-40 Crusher 2815 | -6/Waste | Destroyed C-40 Crusher 2820 | -6/Waste | Allies destroyed C-40 Crusher 2821 | -6/Waste | Allies destroyed C-40 Crusher 2851 | -6/Waste | Lost 6 allies 2866 | -6/Waste | Spotted C-40 Crusher 2868 | -6/Waste | Build established: Mutant 2872 | -6/Waste | Allies destroyed C-40 Crusher 2907 | -6/Waste | Spotted C-40 Crusher 2909 | -6/Waste | Allies destroyed C-40 Crusher 3026 | -6/Waste | Discovered new exit (range 13) 3163 | -6/Waste | Found Damper Plating 3413 | -6/Waste | Entered Factory 3413 | -6/Factory | Accompanied by 12 allies 3553 | -6/Factory | Discovered new exit (range 16) 3656 | -6/Factory | Entered Lower Caves 3656 | -6/Lower Caves | Accompanied by 13 allies 3744 | -6/Lower Caves | Learned Factory non-interactive machine intel 3990 | -6/Lower Caves | Encountered a Warlord checkpoint 4248 | -6/Lower Caves | Discovered new exit (range 6) 4274 | -6/Lower Caves | Entered another Lower Caves area 4274 | -6/Lower Caves | Accompanied by 12 allies 4300 | -6/Lower Caves | Discovered new exit (range 6) 5043 | -6/Lower Caves | Discovered new exit (range 11) 5106 | -6/Lower Caves | Entered Data Miner 5106 | -6/Data Miner | Accompanied by 9 allies 5106 | -6/Data Miner | Discovered new exit (range 6) 5137 | -6/Data Miner | Met Data Miner 5172 | -6/Data Miner | Learned location of Section 7 (-2) 5172 | -6/Data Miner | Acquired the access code to Warlord's prototype stash 5208 | -6/Data Miner | Received God Mode back door access code from Data Miner 5315 | -6/Data Miner | Entered Proximity Caves 5315 | -5/Proximity Caves | Accompanied by 9 allies 5368 | -5/Proximity Caves | Build established: Scavenger-Tank 5693 | -5/Proximity Caves | Attracted the attention of an 0b10 outpost 5757 | -5/Proximity Caves | Lost 4 allies 5803 | -5/Proximity Caves | Lost 3 allies 5848 | -5/Proximity Caves | Learned Factory trap positions 6093 | -5/Proximity Caves | Build established: Tank 6148 | -5/Proximity Caves | Spotted B-75 Beast 6453 | -5/Proximity Caves | Build established: Mutant 7198 | -5/Proximity Caves | Attracted the attention of an 0b10 checkpoint 7704 | -5/Proximity Caves | Discovered new exit (range 7) 7714 | -5/Proximity Caves | Entered Factory 7714 | -5/Factory | Evolved 2 slots: Propulsion x1, Weapon x1 7715 | -5/Factory | Loaded intel: 91 trap records 7716 | -5/Factory | Loaded intel: 238 non-interactive machine locations 7737 | -5/Factory | Discovered new exit (range 11) 8110 | -5/Factory | Discovered new exit (range 2) 8438 | -5/Factory | Build established: Gunner 8547 | -5/Factory | Lost 5 parts (1p2u2w) 8763 | -5/Factory | Lost 4 parts (1p1n2w) 8807 | -5/Factory | Build established: Mutant 9034 | -5/Factory | Incoming investigation squad redirected 9097 | -5/Factory | Core integrity fell below 50% 9117 | -5/Factory | Lost 3 parts (2u1w) 9301 | -5/Factory | System corruption reached 10% 9307 | -5/Factory | Core integrity fell below 20% 9314 | -5/Factory | Discovered new exit (range 9) 9322 | -5/Factory | Entered another Factory area 9322 | -4/Factory | Evolved 2 slots: Propulsion x2 9335 | -4/Factory | Lost 3 parts (1u2w) 9410 | -4/Factory | Repaired Railgun 9447 | -4/Factory | Incoming investigation squad redirected 9678 | -4/Factory | Spotted B-86 Titan 9704 | -4/Factory | Incoming assault squad redirected 9763 | -4/Factory | Core integrity fell below 50% 9775 | -4/Factory | Incoming assault squad redirected 9775 | -4/Factory | Core integrity fell below 20% 9777 | -4/Factory | Destroyed by H-71 Marshal with Heavy Mass Driver Last Messages --------------- K-01 Serf collects debris. R-10 Processor collects Lgt. Ion Engine. Penetrated by Slug. K-01 Serf collects debris. R-10 Processor collects Welding Torch. ALERT: Suspicious intruders detected, dispatching Specialist reinforcements to area. System Shield destroyed. Penetrated by Slug. Critical hit (Meltdown: +350). Penetrated by Slug. The unstable cave ceiling collapses. Penetrated by Slug. K-01 Serf collects debris. Penetrated by Slug. ALERT: Higher priority target reported, redirecting assault. K-01 Serf collects debris. Knocked back. Penetrated by Slug. Map ----- +----------------------------------------------------+ | ??##?????????# #?##""""######??????????????????? | | ###"########## #?" #??????????????????? | | ##" #??????????????????? | | ^ #"" #??????????????????? | | " "#??????????????????? | | "" "#??????????????????? | | "" "#??????????????????? | | "" "#??????????????????? | | ==[ "#??????????????????? | | "" ==[ + T"#??????????????????? | | "" =[[ [ "#??????????????????? | | "" ########## % "#??????????????????? | | #???????## ""#??????????????????? | | = #???????# ""#??????????????????? | | !%* #?########"" "#??????????????????? | | |! #?#"""G"""""% #??????????????????? | | # ###""" """###"""""#####??????????????????? | | # % % !# #??????????????????? | | ### %% % % !%# !!! [#??????????????????? | | ?## =%! % % %"" + = #??????????????????? | | ### " [ %% %%% # #??????????????????? | | = ""% ###########??????????????????? | | = = k%%" #????????????????????????????? | | *!% k% %###########+####### [??????? | | Y % ??????? | | g % %@ H ! ??????? | | "" " "###;; k ??????? | | %! #####;########+############ ??????? | | #???? ????????????????????? | | #?????? ??????????????????? | | #????????""????????????????? | | [ #??????????????????????????? | | #??????????????????????????? | | #??????????????????????????? | | % # #??????????????????????????? | | # #??????????????????????????? | | #######"###??????????????????????????? | | # #??????##????????????????????????????? | | ###????????????????????????????????????? | | ###########??????????????????????????????????????? | | ?????????????????????????????????????????????????? | | ?????????????????????????????????????????????????? | | ?????????????????????????????????????????????????? | | ?????????????????????????????????????????????????? | | ?????????????????????????????????????????????????? | | ?????????????????????????????????????????????????? | | ?????????????????????????????????????????????????? | | ?????????????????????????????????????????????????? | | ?????????????????????????????????????????????????? | | ?????????????????????????????????????????????????? | +----------------------------------------------------+ Best States ------------- Heat Dissipation 75 Energy Generation 19 Energy Capacity 800 Matter Stores 500 Matter Capacity 550 Sight Range 18 Robot Scan Range 20 Terrain Scan Density 10 Armor Coverage 3200 Resistance: EM 90 Evasion (%) 63 Targeting Accuracy 15 Core Analysis 6 Recoil Reduction 2 Matter Filtering 50 Offensive Hacking 10 Defensive Hacking 10 Relay Coupler Types 2 Relay Coupler Value 37 Item Schematics ----------------- Combat Drone Bay | -6/Data Miner | Free Lgt. Regenerative Plating | -6/Data Miner | Free Cld. Gravmag System | -6/Data Miner | Free Exp. Heat Sink | -6/Data Miner | Free Tiamat Missile Launcher | -6/Data Miner | Free Impulse Thruster | -6/Data Miner | Free Adv. Transmission Jammer | -6/Data Miner | Free Matter Neutralizer | -6/Data Miner | Free Lrn. Proton Cannon | -6/Data Miner | Free Antimatter Reactor | -6/Data Miner | Free Robot Schematics ------------------ L-41 Fighter | -6/Data Miner | Free B-48 Gladiator | -6/Data Miner | Free G-50 Soldier | -6/Data Miner | Free E-15 Imp | -6/Data Miner | Free L-61 Swordsman | -6/Data Miner | Free H-66 Slayer | -6/Data Miner | Free Fabricated ------------ Y-54 Guardian | x2 | -7/Factory | Preloaded Repaired ---------- Railgun | 17% | -4/Factory Alien Tech Used ----------------- None Achievements -------------- A New Friend Assimilation Complete Factory Defaults Challenges ------------ None Game ------ Seed FissionTargetingShotgun Manual? 0 Play Time 01:21:45 Cumulative 140.3 hours Start 2025.09.14 @ 15:24:51 End 2025.09.14 @ 17:24:19 Sessions 1 Manual Loads 0 Difficulty Rogue Special Mode None Game No. 471 Rogue 471 Adventurer 0 Explorer 0 Win Type - Total 0 Types 0/0/0/0/0/0/0/0/0/0 Lore% 52 Gallery% 49 Achievement% 37 Wizard Run 0 Options --------- Layout 2 ASCII 0 Keyboard 0 Movement Mouse Keybinds 0 Fullscreen 2 Font 24/Smallcaps Map View 50x44 Zoom Use 0% Tactical HUD 0 Map Filters NONE Filters NONE Steam 1 RUN: 5c69e700-90e4-4d48-a119-a434ed4fcc65